[Event "35th Roquetas Festival 2024"]
[Site "Roquetas de Mar"]
[Date "2024.01.04"]
[Round "4.15"]
[White "Garcia Fernandez, Victor"]
[Black "Serrano Almendros, Alejandro"]
[Result "1-0"]
[ECO "E00"]
[WhiteElo "2366"]
[BlackElo "2206"]
[Annotator "RC"]
[PlyCount "87"]
[EventDate "2024.01.02"]
[EventType "swiss"]
[EventCountry "ESP"]
[SourceTitle "playchess.com"]
[Source "ChessBase"]
[SourceQuality "1"]
[TimeControl "5400+30"]

1. d4 {[%emt 0:00:04]} e6 {[%emt 0:00:04]} 2. c4 {[%emt 0:00:04]} Bb4+ {[%emt 0:00:04]} 3. Nc3 {[%emt 0:01:03]} c5 {[%emt 0:00:32]} 4. Nf3 {[%emt 0:00:07]} cxd4 {[%emt 0:00:42]} 5. Nxd4 {[%emt 0:00:10]} Nf6 {[%emt 0:00:12]} 6. g3 {[%emt 0:00:41]} O-O {[%emt 0:00:33]} 7. Bg2 {[%emt 0:00:05]} d5 {[%emt 0:00:08]} 8. cxd5 {[%emt 0:04:07]} Nxd5 {[%emt 0:00:13]} 9. Qb3 {[%emt 0:00:45]} Nc6 {[%emt 0:19:38]} 10. Nxc6 {[%emt 0:02:06]} bxc6 {[%emt 0:00:09]} 11. O-O {[%emt 0:00:33]} Qa5 {[%emt 0:07:15]} 12. Bd2 {[%emt 0:08:41]} Bxc3 {[%emt 0:15:51]} 13. bxc3 {[%emt 0:26:21]} Ba6 {[%emt 0:00:31]} 14. Rfe1 {[%emt 0:05:33]} Rab8 {[%emt 0:02:53]} 15. Qc2 {[%emt 0:00:11]} Qa3 {[%emt 0:08:10]} 16. e4 {[%emt 0:13:16]} Nb6 {[%emt 0:03:27]} 17. Bf4 {[%emt 0:00:54]} Rbd8 {[%emt 0:00:55]} 18. Qb3 {[%emt 0:00:11]} Qe7 {[%emt 0:09:11]} 19. Qb4 {[%emt 0:01:49]} c5 {[%emt 0:06:27]} 20. Qa5 {[%emt 0:00:16]} Bd3 {[%emt 0:00:11]} 21. h4 {[%emt 0:02:50]} Nc4 {[%emt 0:01:56]} 22. Qa4 {[%emt 0:00:30]} e5 {[%emt 0:02:52]} 23. Bg5 {[%emt 0:00:44]} Qd7 {[%emt 0:01:08]} 24. Qxd7 {[%emt 0:06:11]} Rxd7 {[%emt 0:00:02]} 25. Bh3 {[%emt 0:00:08]} Rb7 {[%emt 0:01:14]} 26. Rad1 {[%emt 0:00:01]} Bc2 {[%emt 0:01:04]} 27. Rd5 {[%emt 0:00:22]} Rc7 {[%emt 0:06:11]} 28. Bd8 {[%emt 0:02:29]} Rb7 {[%emt 0:01:34]} 29. Re2 {[%emt 0:10:01]} Ba4 {[%emt 0:01:28]} 30. Rxc5 {[%emt 0:01:51]} Rxd8 {[%emt 0:00:20]} 31. Rxc4 {[%emt 0:00:05]} Rb1+ {[%emt 0:00:15]} 32. Kh2 {[%emt 0:00:01]} Bb5 {[%emt 0:00:15]} 33. Rd2 {[%emt 0:00:01]} Re8 {[%emt 0:07:01]} 34. Rc7 {[%emt 0:00:34]} Re1 {[%emt 0:02:12]} 35. c4 {[%emt 0:00:30]} Ba4 {[%emt 0:01:17]} 36. Rxa7 {[%emt 0:00:29]} Bd1 {[%emt 0:00:35]} 37. Rdd7 {[%emt 0:00:48]} Rf8 {[%emt 0:00:46]} 38. c5 {[%emt 0:00:31]} Bf3 {[%emt 0:00:48]} 39. Bg2 {[%emt 0:00:06]} Be2 {[%emt 0:01:22]} 40. a4 {[%emt 0:00:39]} g6 {[%emt 0:00:32]} 41. c6 {[%emt 0:00:18]} Kg7 {[%emt 0:00:30]} 42. c7 {[%emt 0:00:40]} Rc8 {[%emt 0:00:10]} 43. Rd8 {[%emt 0:00:11]} Bg4 {[%emt 0:00:10]} 44. Rxc8 {[%emt 0:00:05]} 1-0

[Event "35th Roquetas Festival 2024"]
[Site "Roquetas de Mar"]
[Date "2024.01.04"]
[Round "4.16"]
[White "Macak, Stefan"]
[Black "Valdats, Reinis"]
[Result "1-0"]
[ECO "B76"]
[WhiteElo "2354"]
[BlackElo "2143"]
[Annotator "RC"]
[PlyCount "115"]
[EventDate "2024.01.02"]
[EventType "swiss"]
[EventCountry "ESP"]
[SourceTitle "playchess.com"]
[Source "ChessBase"]
[SourceQuality "1"]
[TimeControl "5400+30"]

1. e4 {[%emt 0:02:09]} c5 {[%emt 0:00:08]} 2. Nf3 {[%emt 0:00:15]} d6 {[%emt 0:00:03]} 3. d4 {[%emt 0:00:07]} cxd4 {[%emt 0:00:04]} 4. Nxd4 {[%emt 0:00:05]} Nf6 {[%emt 0:00:09]} 5. Nc3 {[%emt 0:00:01]} g6 {[%emt 0:00:11]} 6. Be3 {[%emt 0:00:04]} Bg7 {[%emt 0:00:06]} 7. f3 {[%emt 0:00:05]} O-O {[%emt 0:00:05]} 8. Qd2 {[%emt 0:00:03]} Nc6 {[%emt 0:00:09]} 9. O-O-O {[%emt 0:00:04]} d5 {[%emt 0:00:08]} 10. exd5 {[%emt 0:00:09]} Nxd5 {[%emt 0:00:05]} 11. Nxc6 {[%emt 0:00:10]} bxc6 {[%emt 0:00:05]} 12. Bd4 {[%emt 0:00:03]} Nxc3 {[%emt 0:00:11]} 13. Qxc3 {[%emt 0:00:48]} Bh6+ {[%emt 0:00:06]} 14. Be3 {[%emt 0:00:53]} Bxe3+ {[%emt 0:00:05]} 15. Qxe3 {[%emt 0:00:00]} Qb6 {[%emt 0:00:11]} 16. Qxe7 {[%emt 0:03:35]} Be6 {[%emt 0:00:05]} 17. Qa3 {[%emt 0:06:54]} c5 {[%emt 0:06:03]} 18. c4 {[%emt 0:12:26]} Rfd8 {[%emt 0:05:06]} 19. Be2 {[%emt 0:08:01]} Qc7 {[%emt 0:04:25]} 20. Qe3 {[%emt 0:30:29]} Qa5 {[%emt 0:05:08]} 21. a3 {[%emt 0:09:30]} Qa4 {[%emt 0:04:28]} 22. Qc3 {[%emt 0:00:39]} Rac8 {[%emt 0:06:24]} 23. Rxd8+ {[%emt 0:05:57]} Rxd8 {[%emt 0:00:17]} 24. Qc2 {[%emt 0:00:57]} Qa6 {[%emt 0:02:08]} 25. g3 {[%emt 0:05:01]} Bf5 {[%emt 0:11:45]} 26. Qc3 {[%emt 0:01:55]} Re8 {[%emt 0:06:03]} 27. Re1 {[%emt 0:04:15]} h5 {[%emt 0:08:15]} 28. Bf1 {[%emt 0:02:08]} Rd8 {[%emt 0:02:35]} 29. Rd1 {[%emt 0:02:55]} Re8 {[%emt 0:10:50]} 30. h3 {[%emt 0:01:38]} Qa4 {[%emt 0:06:47]} 31. g4 {[%emt 0:00:56]} hxg4 {[%emt 0:00:15]} 32. hxg4 {[%emt 0:00:05]} Be6 {[%emt 0:00:16]} 33. Bd3 {[%emt 0:00:42]} Rd8 {[%emt 0:01:02]} 34. Qf6 {[%emt 0:02:19]} Qxd1+ {[%emt 0:05:12]} 35. Kxd1 {[%emt 0:00:01]} Rxd3+ {[%emt 0:00:11]} 36. Kc2 {[%emt 0:01:26]} Bxc4 {[%emt 0:00:14]} 37. Qf4 {[%emt 0:00:43]} Rd4 {[%emt 0:00:36]} 38. Qb8+ {[%emt 0:00:12]} Kh7 {[%emt 0:00:19]} 39. Qxa7 {[%emt 0:00:07]} Be6 {[%emt 0:00:16]} 40. a4 {[%emt 0:01:22]} Rf4 {[%emt 0:00:16]} 41. Qa8 {[%emt 0:01:12]} Rc4+ {[%emt 0:01:25]} 42. Kb1 {[%emt 0:00:25]} Rb4 {[%emt 0:00:47]} 43. a5 {[%emt 0:00:08]} c4 {[%emt 0:00:09]} 44. Kc2 {[%emt 0:00:11]} Rb5 {[%emt 0:01:36]} 45. a6 {[%emt 0:00:34]} Bd5 {[%emt 0:00:24]} 46. Qd8 {[%emt 0:00:57]} Bxf3 {[%emt 0:00:22]} 47. a7 {[%emt 0:00:48]} Be4+ {[%emt 0:00:27]} 48. Kc1 {[%emt 0:00:33]} Rb3 {[%emt 0:01:25]} 49. a8=Q {[%emt 0:00:30]} Bxa8 {[%emt 0:00:08]} 50. Qxa8 {[%emt 0:00:05]} c3 {[%emt 0:00:13]} 51. Qd5 {[%emt 0:00:45]} Rxb2 {[%emt 0:00:19]} 52. Qxf7+ {[%emt 0:00:12]} Kh6 {[%emt 0:00:10]} 53. Qf4+ {[%emt 0:00:16]} Kh7 {[%emt 0:00:16]} 54. g5 {[%emt 0:00:51]} Rb7 {[%emt 0:00:55]} 55. Qh4+ {[%emt 0:00:03]} Kg8 {[%emt 0:00:12]} 56. Qe4 {[%emt 0:00:38]} Rg7 {[%emt 0:00:39]} 57. Qe8+ {[%emt 0:00:21]} Kh7 {[%emt 0:00:04]} 58. Qf8 {[%emt 0:00:22]} 1-0

[Event "35th Roquetas Festival 2024"]
[Site "Roquetas de Mar"]
[Date "2024.01.04"]
[Round "4.17"]
[White "Rodriguez Lopez, Rafael"]
[Black "Raczek, Krzysztof"]
[Result "1/2-1/2"]
[ECO "B12"]
[WhiteElo "2152"]
[BlackElo "2347"]
[Annotator "RC"]
[PlyCount "93"]
[EventDate "2024.01.02"]
[EventType "swiss"]
[EventCountry "ESP"]
[SourceTitle "playchess.com"]
[Source "ChessBase"]
[SourceQuality "1"]
[TimeControl "5400+30"]

1. e4 {[%emt 0:00:05]} c6 {[%emt 0:00:25]} 2. d4 {[%emt 0:00:10]} g6 {[%emt 0:00:06]} 3. Nf3 {[%emt 0:00:32]} d5 {[%emt 0:00:05]} 4. Nbd2 {[%emt 0:00:27]} dxe4 {[%emt 0:01:09]} 5. Nxe4 {[%emt 0:00:08]} Bg7 {[%emt 0:00:05]} 6. c3 {[%emt 0:00:10]} Nf6 {[%emt 0:03:48]} 7. Nxf6+ {[%emt 0:00:39]} exf6 {[%emt 0:00:19]} 8. Bc4 {[%emt 0:00:58]} O-O {[%emt 0:00:38]} 9. O-O {[%emt 0:00:07]} Nd7 {[%emt 0:00:44]} 10. Bb3 {[%emt 0:01:49]} Re8 {[%emt 0:06:18]} 11. Re1 {[%emt 0:00:48]} Nb6 {[%emt 0:03:34]} 12. Rxe8+ {[%emt 0:01:48]} Qxe8 {[%emt 0:00:14]} 13. Bd2 {[%emt 0:00:17]} a5 {[%emt 0:13:24]} 14. a4 {[%emt 0:01:25]} Be6 {[%emt 0:01:26]} 15. Bxe6 {[%emt 0:00:07]} Qxe6 {[%emt 0:00:08]} 16. b3 {[%emt 0:01:18]} f5 {[%emt 0:09:26]} 17. Qf1 {[%emt 0:04:33]} Nd7 18. Qc4 {[%emt 0:07:58]} Nf6 {[%emt 0:22:30]} 19. Qxe6 {[%emt 0:11:26]} fxe6 {[%emt 0:00:01]} 20. Ng5 {[%emt 0:00:13]} Re8 {[%emt 0:03:31]} 21. Re1 {[%emt 0:00:07]} Bh6 {[%emt 0:00:11]} 22. f3 {[%emt 0:00:29]} Nd7 {[%emt 0:06:15]} 23. Bf4 {[%emt 0:01:30]} Bxg5 {[%emt 0:07:23]} 24. Bxg5 {[%emt 0:00:05]} Kf7 {[%emt 0:00:03]} 25. Kf1 {[%emt 0:01:29]} e5 {[%emt 0:08:53]} 26. dxe5 {[%emt 0:00:43]} Rxe5 {[%emt 0:00:34]} 27. Rxe5 {[%emt 0:01:52]} Nxe5 {[%emt 0:00:02]} 28. Ke2 {[%emt 0:00:56]} Ke6 {[%emt 0:02:29]} 29. Bd8 {[%emt 0:01:02]} Nd7 30. Kd3 {[%emt 0:01:20]} b6 {[%emt 0:02:19]} 31. Kd4 {[%emt 0:08:14]} Kd6 {[%emt 0:02:40]} 32. g4 {[%emt 0:02:45]} c5+ {[%emt 0:03:58]} 33. Ke3 {[%emt 0:01:04]} fxg4 {[%emt 0:00:29]} 34. fxg4 {[%emt 0:00:09]} c4 {[%emt 0:01:18]} 35. b4 {[%emt 0:00:12]} Kd5 {[%emt 0:01:44]} 36. h3 {[%emt 0:01:53]} h6 {[%emt 0:01:47]} 37. h4 {[%emt 0:01:48]} axb4 {[%emt 0:00:29]} 38. cxb4 {[%emt 0:00:06]} Ne5 {[%emt 0:00:08]} 39. Bxb6 {[%emt 0:00:38]} c3 {[%emt 0:00:46]} 40. Bc7 {[%emt 0:00:59]} Nxg4+ {[%emt 0:00:38]} 41. Kd3 {[%emt 0:00:06]} g5 {[%emt 0:00:13]} 42. hxg5 {[%emt 0:02:25]} hxg5 {[%emt 0:00:01]} 43. Kxc3 {[%emt 0:00:08]} Nf6 44. Bb6 {[%emt 0:00:59]} Kc6 {[%emt 0:01:04]} 45. Bg1 {[%emt 0:01:23]} Nd5+ 46. Kc4 {[%emt 0:00:05]} Nxb4 {[%emt 0:00:08]} 47. Kd4 1/2-1/2

[Event "35th Roquetas Festival 2024"]
[Site "Roquetas de Mar"]
[Date "2024.01.04"]
[Round "4.18"]
[White "Bravo De La Vega, Alvaro"]
[Black "Luque Saiz, Andres"]
[Result "1-0"]
[ECO "C11"]
[WhiteElo "2121"]
[BlackElo "2328"]
[Annotator "RC"]
[PlyCount "147"]
[EventDate "2024.01.02"]
[EventType "swiss"]
[EventCountry "ESP"]
[SourceTitle "playchess.com"]
[Source "ChessBase"]
[SourceQuality "1"]
[TimeControl "5400+30"]

1. e4 e6 {[%emt 0:07:38]} 2. d4 {[%emt 0:01:11]} d5 {[%emt 0:00:07]} 3. Nc3 {[%emt 0:00:08]} Nf6 {[%emt 0:03:11]} 4. Bg5 {[%emt 0:00:12]} h6 {[%emt 0:00:31]} 5. Bxf6 {[%emt 0:02:05]} Qxf6 {[%emt 0:00:08]} 6. exd5 {[%emt 0:03:20]} Bb4 {[%emt 0:00:18]} 7. Bb5+ {[%emt 0:02:07]} Bd7 {[%emt 0:03:53]} 8. Bxd7+ {[%emt 0:00:34]} Nxd7 {[%emt 0:03:09]} 9. dxe6 {[%emt 0:03:05]} fxe6 {[%emt 0:00:42]} 10. Nge2 {[%emt 0:01:46]} O-O-O {[%emt 0:03:19]} 11. O-O {[%emt 0:01:22]} Qh4 {[%emt 0:04:43]} 12. g3 {[%emt 0:02:28]} Qf6 {[%emt 0:06:52]} 13. Ne4 {[%emt 0:10:13]} Qf5 {[%emt 0:01:06]} 14. a3 {[%emt 0:04:53]} Ba5 {[%emt 0:22:51]} 15. Qd3 {[%emt 0:02:31]} Ne5 {[%emt 0:06:07]} 16. Qe3 {[%emt 0:19:02]} Nc4 {[%emt 0:04:55]} 17. Qb3 {[%emt 0:01:57]} Qxe4 {[%emt 0:03:29]} 18. Qxc4 {[%emt 0:00:09]} Rd6 {[%emt 0:00:33]} 19. b4 {[%emt 0:11:15]} Bb6 {[%emt 0:04:44]} 20. c3 {[%emt 0:01:25]} g5 {[%emt 0:04:03]} 21. Rae1 {[%emt 0:02:07]} Qf3 {[%emt 0:01:22]} 22. Nc1 {[%emt 0:03:22]} Rc6 {[%emt 0:07:22]} 23. Re3 {[%emt 0:00:07]} Qf6 {[%emt 0:00:11]} 24. Qe2 {[%emt 0:00:55]} h5 {[%emt 0:01:32]} 25. Re1 {[%emt 0:00:31]} Rh6 {[%emt 0:02:34]} 26. Rf3 {[%emt 0:00:51]} Qh8 {[%emt 0:02:08]} 27. d5 {[%emt 0:05:38]} exd5 {[%emt 0:02:57]} 28. Qe7 {[%emt 0:00:18]} Rhf6 {[%emt 0:00:32]} 29. Rxf6 {[%emt 0:00:38]} Rxf6 {[%emt 0:01:03]} 30. Nd3 {[%emt 0:00:19]} Qf8 {[%emt 0:01:56]} 31. Qxf8+ {[%emt 0:03:59]} Rxf8 {[%emt 0:00:04]} 32. Kg2 {[%emt 0:02:35]} g4 {[%emt 0:01:07]} 33. Nf4 {[%emt 0:00:10]} h4 34. Re5 {[%emt 0:00:25]} h3+ {[%emt 0:01:48]} 35. Kf1 {[%emt 0:00:15]} c6 {[%emt 0:00:31]} 36. Rg5 {[%emt 0:00:19]} d4 {[%emt 0:00:29]} 37. cxd4 {[%emt 0:00:39]} Bxd4 {[%emt 0:00:12]} 38. Rxg4 {[%emt 0:00:12]} Bb2 {[%emt 0:00:30]} 39. a4 {[%emt 0:00:09]} a5 {[%emt 0:00:40]} 40. Nxh3 {[%emt 0:00:27]} axb4 {[%emt 0:00:10]} 41. Rxb4 {[%emt 0:00:06]} Ba3 {[%emt 0:00:29]} 42. Rb3 {[%emt 0:00:18]} Bc5 {[%emt 0:00:24]} 43. Nf4 {[%emt 0:00:21]} Bd6 {[%emt 0:00:29]} 44. Ne6 {[%emt 0:01:00]} Re8 {[%emt 0:00:40]} 45. Ng5 {[%emt 0:00:27]} Kc7 {[%emt 0:00:33]} 46. h4 {[%emt 0:00:46]} Ra8 {[%emt 0:00:33]} 47. h5 {[%emt 0:01:07]} Be7 {[%emt 0:00:35]} 48. Ne6+ {[%emt 0:00:40]} Kd6 {[%emt 0:00:35]} 49. Ng7 {[%emt 0:00:26]} Bf6 {[%emt 0:00:38]} 50. Rxb7 {[%emt 0:01:15]} c5 {[%emt 0:00:34]} 51. Rb6+ {[%emt 0:01:48]} Ke7 {[%emt 0:00:23]} 52. Nf5+ {[%emt 0:00:58]} Kf7 {[%emt 0:00:03]} 53. Rc6 {[%emt 0:00:21]} Ra5 {[%emt 0:00:50]} 54. g4 {[%emt 0:00:11]} Bg5 {[%emt 0:00:41]} 55. f3 {[%emt 0:00:46]} Bf4 {[%emt 0:00:29]} 56. Ke2 {[%emt 0:00:53]} Rxa4 {[%emt 0:00:29]} 57. Rxc5 {[%emt 0:00:07]} Ra3 {[%emt 0:00:36]} 58. Rc4 {[%emt 0:00:33]} Bb8 {[%emt 0:00:24]} 59. Rb4 {[%emt 0:00:32]} Ba7 {[%emt 0:00:28]} 60. h6 {[%emt 0:00:18]} Kg6 {[%emt 0:00:34]} 61. Rb7 {[%emt 0:00:17]} Bc5 {[%emt 0:00:13]} 62. Rg7+ {[%emt 0:00:27]} Kf6 {[%emt 0:00:07]} 63. h7 {[%emt 0:00:17]} Ra2+ {[%emt 0:00:16]} 64. Kd3 {[%emt 0:00:06]} Rh2 {[%emt 0:00:04]} 65. Rc7 {[%emt 0:00:46]} Ba3 {[%emt 0:01:30]} 66. Ke4 {[%emt 0:00:35]} Bb2 {[%emt 0:00:43]} 67. f4 {[%emt 0:00:16]} Kg6 {[%emt 0:00:37]} 68. Rb7 {[%emt 0:01:17]} Ba1 {[%emt 0:00:27]} 69. Ng3 {[%emt 0:01:04]} Rh4 {[%emt 0:00:36]} 70. Kf3 {[%emt 0:00:30]} Rh3 {[%emt 0:00:17]} 71. f5+ {[%emt 0:00:27]} Kg5 {[%emt 0:00:40]} 72. Rb6 {[%emt 0:02:08]} Rxh7 {[%emt 0:00:35]} 73. Ne4+ {[%emt 0:00:12]} Kh4 {[%emt 0:00:03]} 74. Rb1 {[%emt 0:00:09]} 1-0

[Event "35th Roquetas Festival 2024"]
[Site "Roquetas de Mar"]
[Date "2024.01.04"]
[Round "4.19"]
[White "Perea Fruet, Lorenzo"]
[Black "Shamatava, Nikolozi"]
[Result "0-1"]
[ECO "C47"]
[WhiteElo "2323"]
[BlackElo "2088"]
[Annotator "RC"]
[PlyCount "74"]
[EventDate "2024.01.02"]
[EventType "swiss"]
[EventCountry "ESP"]
[SourceTitle "playchess.com"]
[Source "ChessBase"]
[SourceQuality "1"]
[TimeControl "5400+30"]

1. e4 {[%emt 0:00:03]} e5 {[%emt 0:00:06]} 2. Nf3 {[%emt 0:00:04]} Nc6 {[%emt 0:00:06]} 3. Nc3 {[%emt 0:00:02]} Nf6 {[%emt 0:00:07]} 4. h3 {[%emt 0:00:02]} Bb4 {[%emt 0:04:45]} 5. Nd5 {[%emt 0:00:54]} Nxd5 {[%emt 0:01:32]} 6. exd5 {[%emt 0:00:07]} Nd4 {[%emt 0:00:05]} 7. Nxd4 {[%emt 0:04:52]} exd4 {[%emt 0:00:02]} 8. c3 {[%emt 0:01:34]} O-O {[%emt 0:03:32]} 9. Be2 {[%emt 0:04:01]} Bd6 {[%emt 0:14:25]} 10. O-O {[%emt 0:05:09]} Qf6 {[%emt 0:06:16]} 11. c4 {[%emt 0:05:12]} Re8 {[%emt 0:03:52]} 12. Bf3 {[%emt 0:02:31]} d3 {[%emt 0:00:44]} 13. Re1 {[%emt 0:03:18]} Be5 {[%emt 0:04:44]} 14. Be4 {[%emt 0:08:54]} d6 {[%emt 0:11:39]} 15. Bxd3 {[%emt 0:05:16]} Bd7 {[%emt 0:00:22]} 16. Re3 {[%emt 0:12:50]} Bd4 {[%emt 0:08:18]} 17. Rf3 {[%emt 0:10:03]} Qe5 {[%emt 0:00:21]} 18. Qf1 {[%emt 0:03:23]} Re7 {[%emt 0:03:55]} 19. Rb1 {[%emt 0:02:15]} Rae8 {[%emt 0:02:11]} 20. b3 {[%emt 0:01:25]} Qg5 {[%emt 0:08:00]} 21. Re3 {[%emt 0:01:33]} Bxe3 {[%emt 0:00:54]} 22. dxe3 {[%emt 0:00:19]} Bxh3 {[%emt 0:01:09]} 23. e4 {[%emt 0:03:03]} Qg6 {[%emt 0:00:08]} 24. Bb2 {[%emt 0:04:28]} f5 {[%emt 0:01:34]} 25. e5 {[%emt 0:00:18]} dxe5 {[%emt 0:04:03]} 26. c5 {[%emt 0:00:29]} Kh8 {[%emt 0:00:35]} 27. Ba3 {[%emt 0:01:27]} Rd7 {[%emt 0:00:50]} 28. d6 {[%emt 0:00:48]} e4 {[%emt 0:00:37]} 29. Bc4 {[%emt 0:01:44]} f4 {[%emt 0:00:11]} 30. Kh1 {[%emt 0:00:40]} Bg4 {[%emt 0:01:37]} 31. Re1 {[%emt 0:01:15]} f3 {[%emt 0:00:38]} 32. g3 {[%emt 0:02:26]} Qh5+ {[%emt 0:00:26]} 33. Kg1 {[%emt 0:00:04]} Bh3 {[%emt 0:00:10]} 34. c6 {[%emt 0:00:03]} bxc6 {[%emt 0:00:29]} 35. dxc7 {[%emt 0:00:43]} Bxf1 {[%emt 0:00:19]} 36. Rxe4 {[%emt 0:00:03]} Bxc4 {[%emt 0:00:17]} 37. g4 {[%emt 0:00:18]} Rd1+ {[%emt 0:00:06]} 0-1

[Event "35th Roquetas Festival 2024"]
[Site "Roquetas de Mar"]
[Date "2024.01.04"]
[Round "4.20"]
[White "Garrido Diaz, Jose Antonio"]
[Black "Diaz Mino, Daniel"]
[Result "1/2-1/2"]
[ECO "B52"]
[WhiteElo "2291"]
[BlackElo "2074"]
[Annotator "RC"]
[PlyCount "138"]
[EventDate "2024.01.02"]
[EventType "swiss"]
[EventCountry "ESP"]
[SourceTitle "playchess.com"]
[Source "ChessBase"]
[SourceQuality "1"]
[TimeControl "5400+30"]

1. e4 {[%emt 0:00:04]} c5 {[%emt 0:02:29]} 2. Nf3 {[%emt 0:00:07]} d6 {[%emt 0:00:17]} 3. Bb5+ {[%emt 0:00:08]} Bd7 {[%emt 0:00:05]} 4. Bxd7+ {[%emt 0:00:06]} Qxd7 {[%emt 0:00:03]} 5. c4 {[%emt 0:00:17]} Nc6 {[%emt 0:00:04]} 6. Nc3 {[%emt 0:00:27]} Nf6 {[%emt 0:00:16]} 7. d4 {[%emt 0:01:25]} cxd4 {[%emt 0:00:05]} 8. Nxd4 {[%emt 0:00:02]} g6 {[%emt 0:00:49]} 9. f3 {[%emt 0:00:58]} Bg7 {[%emt 0:00:05]} 10. Be3 {[%emt 0:00:07]} O-O {[%emt 0:00:06]} 11. O-O {[%emt 0:00:04]} Rac8 {[%emt 0:05:01]} 12. b3 {[%emt 0:04:16]} a6 {[%emt 0:07:01]} 13. Qd2 {[%emt 0:09:59]} Rfd8 {[%emt 0:12:25]} 14. Na4 {[%emt 0:09:20]} Qe8 {[%emt 0:11:39]} 15. Nb6 {[%emt 0:03:11]} Rc7 {[%emt 0:00:41]} 16. Rad1 {[%emt 0:09:14]} Ne5 {[%emt 0:09:25]} 17. h3 {[%emt 0:08:07]} Rb8 {[%emt 0:05:05]} 18. Rfe1 {[%emt 0:04:16]} Ned7 {[%emt 0:01:53]} 19. Nd5 {[%emt 0:02:51]} Rcc8 {[%emt 0:00:20]} 20. Rc1 {[%emt 0:07:37]} Qd8 {[%emt 0:01:23]} 21. Bf2 {[%emt 0:05:59]} Ne5 {[%emt 0:17:28]} 22. a4 {[%emt 0:03:06]} Nc6 {[%emt 0:01:07]} 23. b4 {[%emt 0:09:57]} Nxd5 {[%emt 0:07:09]} 24. exd5 {[%emt 0:02:42]} Nxd4 {[%emt 0:00:08]} 25. Bxd4 {[%emt 0:00:02]} Bxd4+ {[%emt 0:01:39]} 26. Qxd4 {[%emt 0:00:01]} a5 {[%emt 0:00:46]} 27. c5 {[%emt 0:00:36]} axb4 {[%emt 0:03:03]} 28. Qxb4 {[%emt 0:00:09]} dxc5 {[%emt 0:01:18]} 29. Rxc5 {[%emt 0:00:00]} Rxc5 {[%emt 0:00:08]} 30. Qxc5 {[%emt 0:00:02]} Qd6 {[%emt 0:00:08]} 31. Qb5 {[%emt 0:06:21]} b6 {[%emt 0:00:37]} 32. Rc1 {[%emt 0:00:23]} Rd8 {[%emt 0:01:45]} 33. Qc6 {[%emt 0:02:31]} Qxd5 {[%emt 0:00:47]} 34. Qxb6 {[%emt 0:00:01]} Ra8 {[%emt 0:00:56]} 35. Qb4 {[%emt 0:00:51]} Qa5 {[%emt 0:06:22]} 36. Rc8+ {[%emt 0:09:03]} Kg7 {[%emt 0:00:02]} 37. Qb2+ {[%emt 0:00:05]} Kh6 {[%emt 0:02:56]} 38. Qc1+ {[%emt 0:01:49]} Kg7 {[%emt 0:00:08]} 39. Qb2+ {[%emt 0:00:01]} Kh6 {[%emt 0:00:02]} 40. Rxa8 {[%emt 0:00:12]} Qxa8 {[%emt 0:00:01]} 41. Qb4 {[%emt 0:00:19]} Qa7+ {[%emt 0:00:37]} 42. Kh1 {[%emt 0:00:25]} Kg7 {[%emt 0:01:08]} 43. a5 {[%emt 0:00:19]} Qe3 {[%emt 0:02:28]} 44. Qb2+ {[%emt 0:01:29]} f6 {[%emt 0:00:18]} 45. Qa1 {[%emt 0:00:58]} Qa7 {[%emt 0:00:21]} 46. Qa3 {[%emt 0:01:23]} h5 {[%emt 0:00:33]} 47. Qb4 {[%emt 0:00:59]} h4 {[%emt 0:01:21]} 48. Qb6 {[%emt 0:00:08]} Qd7 {[%emt 0:00:04]} 49. a6 {[%emt 0:00:19]} Qd1+ {[%emt 0:00:32]} 50. Kh2 {[%emt 0:00:26]} Qa1 {[%emt 0:00:01]} 51. a7 {[%emt 0:02:00]} Qe5+ {[%emt 0:00:06]} 52. Kh1 {[%emt 0:00:43]} Qa1+ {[%emt 0:00:21]} 53. Qg1 {[%emt 0:00:13]} Qa5 {[%emt 0:00:58]} 54. Qe3 {[%emt 0:00:16]} e5 {[%emt 0:02:08]} 55. Qf2 {[%emt 0:00:19]} g5 {[%emt 0:00:01]} 56. Qe3 {[%emt 0:00:08]} Kh6 {[%emt 0:00:01]} 57. Kg1 {[%emt 0:00:45]} Kg7 {[%emt 0:00:09]} 58. Kf1 {[%emt 0:00:36]} Qa1+ {[%emt 0:00:24]} 59. Ke2 {[%emt 0:00:02]} Qa2+ {[%emt 0:00:06]} 60. Kd1 {[%emt 0:00:37]} Qa1+ {[%emt 0:00:08]} 61. Ke2 {[%emt 0:01:03]} Qa2+ {[%emt 0:00:01]} 62. Kd3 {[%emt 0:00:33]} Qa3+ {[%emt 0:00:13]} 63. Ke4 {[%emt 0:00:35]} Qa4+ {[%emt 0:01:38]} 64. Kd5 {[%emt 0:00:15]} Qd7+ {[%emt 0:00:01]} 65. Kc4 {[%emt 0:00:05]} Qa4+ {[%emt 0:00:03]} 66. Kd5 {[%emt 0:00:43]} Qd7+ {[%emt 0:00:03]} 67. Ke4 {[%emt 0:00:39]} Qa4+ {[%emt 0:00:14]} 68. Kd3 {[%emt 0:00:13]} Qa3+ {[%emt 0:00:20]} 69. Ke2 {[%emt 0:00:01]} Qa2+ 1/2-1/2